bitfinex/quotes_BTCUSD_20241001
["timestamp","ask_amount","ask_price","bid_price","bid_amount"]
[1727795499859,0.1564578,62104.0,62101.0,1.422858]
[1727795500137,0.04161003,62102.0,62101.0,1.422858]
[1727795500391,0.01600386,62102.0,62101.0,2.21954427]
[1727795500633,0.02563666,62103.0,62102.0,0.261025]
[1727795500885,0.24152256,62130.0,62102.0,0.261025]
[1727795500886,0.24152256,62130.0,62115.0,0.19693]
[1727795501144,0.24152256,62130.0,62122.0,0.77402386]
[1727795501370,0.26255387,62123.0,62122.0,0.77402386]
[1727795501618,0.24652256,62123.0,62122.0,0.77402386]
[1727795501874,0.24652256,62123.0,62122.0,0.61305086]
[1727795502111,0.25736655,62123.0,62116.0,0.019693]
[1727795502352,0.01584399,62122.0,62106.0,0.1]
[1727795502599,0.44260188,62122.0,62107.0,0.08260154]
[1727795502833,0.24152256,62115.0,62101.0,1.45003561]
[1727795503072,0.02426133,62113.0,62101.0,1.422858]
[1727795503342,0.02426133,62107.0,62102.0,0.1422898]
[1727795503590,0.01584399,62106.0,62102.0,0.1422898]
[1727795503822,0.01584399,62105.0,62102.0,0.1422898]
[1727795504055,0.01584399,62110.0,62103.0,0.15644678]
[1727795504294,0.24152256,62108.0,62104.0,0.1]
[1727795504550,0.04406284,62109.0,62104.0,0.1]
[1727795504551,0.04406284,62107.0,62104.0,0.1]
[1727795504789,0.000819,62109.0,62106.0,0.61305086]
[1727795505017,0.25740307,62108.0,62107.0,0.20117874]
[1727795505254,0.04414847,62108.0,62107.0,0.20117874]
[1727795505506,0.02826563,62108.0,62107.0,0.20117874]
[1727795505750,0.03126563,62108.0,62107.0,0.36219074]
[1727795506005,0.04414499,62108.0,62107.0,0.36219074]
[1727795506242,0.000819,62109.0,62108.0,0.161009]
[1727795506480,0.000819,62109.0,62108.0,0.47391358]
[1727795506964,0.24152256,62123.0,62108.0,0.47391358]
[1727795506965,0.24152256,62123.0,62122.0,0.67402386]
[1727795507201,0.30322579,62123.0,62114.0,0.51305086]
[1727795507435,0.06170323,62122.0,62114.0,0.66950866]
[1727795507667,0.0334963,62121.0,62119.0,0.160979]
[1727795507888,0.24152256,62130.0,62120.0,0.0804931]
[1727795508134,0.06201721,62129.0,62116.0,0.321974]
[1727795508365,0.24152256,62123.0,62115.0,0.260991]
[1727795508598,0.21849877,62128.0,62115.0,0.1]
[1727795508830,0.04611094,62122.0,62115.0,0.19350509]
[1727795509074,0.04611094,62121.0,62115.0,0.19350509]
[1727795509318,0.04611094,62121.0,62109.0,0.1]
[1727795509319,0.20256874,62120.0,62109.0,0.1]
[1727795509554,0.20256874,62120.0,62100.0,0.81309086]
[1727795509555,0.02442789,62117.0,62100.0,0.81309086]
[1727795509783,0.160996,62114.0,62101.0,1.54213648]
[1727795510026,0.01593221,62113.0,62101.0,1.54213648]
[1727795510258,0.01593221,62112.0,62101.0,1.54213648]
[1727795510488,0.01593221,62112.0,62101.0,1.70316348]
[1727795510489,0.01593221,62111.0,62101.0,1.70316348]
[1727795510751,0.04588839,62110.0,62102.0,0.15644678]
[1727795510976,0.01586266,62110.0,62109.0,0.1]
[1727795511229,0.24152256,62113.0,62109.0,0.001]
[1727795511469,0.37888408,62110.0,62109.0,0.001]
[1727795511700,0.35870354,62110.0,62109.0,0.001]
[1727795511950,0.35870354,62110.0,62101.0,1.422858]
[1727795511951,0.161025,62102.0,62101.0,1.422858]
[1727795512259,0.24325956,62102.0,62101.0,1.422858]
[1727795512352,0.25889168,62102.0,62101.0,1.422858]
[1727795512600,0.26849799,62102.0,62101.0,1.422858]
[1727795512837,0.28414063,62102.0,62101.0,1.422858]
[1727795513344,0.42952299,62102.0,62101.0,1.422858]
[1727795513589,0.42952299,62102.0,62101.0,0.60971956]
[1727795513590,0.64722299,62102.0,62101.0,0.60971956]
[1727795513827,0.45252299,62102.0,62101.0,0.12201956]
[1727795514296,0.161077,62082.0,62081.0,0.010736]
[1727795514538,0.3175348,62082.0,62081.0,0.010736]
[1727795514796,0.20241145,62082.0,62081.0,0.010736]
[1727795515032,0.43002203,62082.0,62081.0,0.010736]
[1727795515504,0.38825094,62082.0,62081.0,0.010736]
[1727795515740,0.41366079,62082.0,62081.0,0.010736]
[1727795515978,0.42954194,62082.0,62081.0,0.010736]
[1727795516208,0.41829341,62082.0,62081.0,0.010736]
[1727795516912,0.43229341,62082.0,62081.0,0.010736]
[1727795517164,0.44791405,62082.0,62081.0,0.010736]
[1727795517425,0.43229341,62082.0,62081.0,0.010736]
[1727795517650,0.43215389,62082.0,62081.0,0.010736]
[1727795517888,0.35681661,62082.0,62081.0,0.010736]
[1727795518122,0.4389681,62082.0,62081.0,0.010736]
[1727795518383,0.4389681,62082.0,62048.0,0.0772]
[1727795518384,0.161129,62062.0,62061.0,0.24152256]
[1727795518613,0.20160929,62062.0,62061.0,0.24152256]
[1727795518840,0.20160929,62062.0,62048.0,0.238363]
[1727795518841,0.21736519,62062.0,62051.0,0.51305086]
[1727795519107,0.21736519,62062.0,62048.0,0.0772]
[1727795519108,0.20160929,62061.0,62048.0,0.0772]
[1727795519336,0.161141,62058.0,62048.0,0.0772]
[1727795519596,0.161141,62058.0,62044.0,0.355673]
[1727795519597,0.07032386,62057.0,62044.0,0.1945]
[1727795519839,0.161157,62051.0,62044.0,0.1945]
[1727795520074,0.06090739,62051.0,62047.0,0.51305086]
[1727795520307,0.06090739,62051.0,62044.0,0.1945]
[1727795520308,0.1722137,62051.0,62044.0,0.1945]
[1727795520536,0.23316929,62051.0,62044.0,0.1945]
[1727795521217,0.21741783,62051.0,62044.0,0.1945]
[1727795521220,0.2314097,62051.0,62044.0,0.1945]
[1727795521391,0.2314097,62051.0,62044.0,0.516849]
[1727795521592,0.22877498,62051.0,62044.0,0.516849]
[1727795521791,0.22877498,62051.0,62047.0,0.161166]
[1727795522007,0.20351658,62051.0,62044.0,0.1945]
[1727795522174,0.20351658,62051.0,62037.0,0.1]
[1727795522175,0.38993203,62051.0,62037.0,0.1]
[1727795522403,0.38993203,62051.0,62027.0,0.70985086]
[1727795522404,0.44064062,62051.0,62027.0,0.43832256]
[1727795522633,0.161194,62037.0,62026.0,0.00164]
[1727795522880,0.023,62034.0,62026.0,0.96717255]
[1727795523357,0.20147493,62037.0,62014.0,0.51305086]
[1727795523358,0.02424011,62032.0,62014.0,0.51305086]
[1727795523565,0.161221,62027.0,62014.0,0.51305086]
[1727795523813,0.06801713,62031.0,62014.0,0.51305086]
[1727795523814,0.06073069,62026.0,62014.0,0.51305086]
[1727795524056,0.04501713,62025.0,62014.0,0.51305086]
[1727795524291,0.01731428,62025.0,62014.0,0.51305086]
[1727795524745,0.01731428,62025.0,62014.0,0.67430186]
[1727795524746,0.02527098,62023.0,62014.0,0.67430186]
[1727795525014,0.02527098,62023.0,62014.0,0.61778531]
[1727795525015,0.17377208,62022.0,62014.0,0.61778531]
[1727795525259,0.02527098,62023.0,62021.0,0.61305086]
[1727795525525,0.014,62032.0,62023.0,0.273]
[1727795525761,0.96717255,62054.0,62036.0,0.1]
[1727795526027,0.1564578,62053.0,62044.0,0.51305086]
[1727795526264,0.02761258,62053.0,62051.0,0.51305086]
[1727795526523,0.01557176,62053.0,62051.0,0.51305086]
[1727795526770,0.01557176,62053.0,62052.0,0.261155]
[1727795526994,0.01557176,62053.0,62052.0,1.30982755]
[1727795527222,0.01544995,62057.0,62056.0,0.161144]
[1727795527444,0.01555084,62076.0,62062.0,0.322254]
[1727795527675,0.20081609,62075.0,62063.0,0.1]
[1727795527937,0.04435829,62074.0,62063.0,0.1]
[1727795528176,0.20081609,62074.0,62064.0,0.24166653]
[1727795528443,0.322219,62070.0,62064.0,0.24166653]
[1727795528659,0.161139,62058.0,62057.0,0.24166653]
[1727795529170,0.161157,62051.0,62050.0,0.24166653]
[1727795529439,0.161157,62051.0,62034.0,0.24166653]
[1727795529440,0.161175,62044.0,62034.0,0.24166653]
[1727795529651,0.3176328,62044.0,62034.0,0.24166653]
[1727795530088,0.34289637,62044.0,62034.0,0.24166653]
[1727795530342,0.161185,62041.0,62034.0,0.24166653]
[1727795530567,0.1564578,62040.0,62034.0,0.24166653]
[1727795530812,0.1564578,62040.0,62035.0,0.24166653]
[1727795530813,0.161198,62036.0,62035.0,0.24166653]
[1727795531065,0.161201,62034.0,62033.0,0.0782]
[1727795531282,0.161209,62032.0,62028.0,0.24166653]
[1727795531555,0.1564578,62031.0,62028.0,0.24166653]
[1727795531803,0.02526572,62036.0,62028.0,0.26583318]
[1727795532018,0.3176578,62035.0,62024.0,0.51305086]
[1727795532239,0.1564578,62035.0,62028.0,0.24166653]
[1727795532466,0.1564578,62035.0,62025.0,0.1]
[1727795532765,0.011,62032.0,62025.0,0.1]
[1727795532988,0.1564578,62031.0,62028.0,0.24166653]
[1727795533235,0.1564578,62031.0,62022.0,0.1]
[1727795533472,0.1564578,62031.0,62019.0,0.24166653]
[1727795533727,0.1564578,62031.0,62026.0,0.24166653]
[1727795533963,0.161141,62058.0,62043.0,0.161177]
[1727795534172,0.24166653,62053.0,62049.0,0.51305086]
[1727795534436,0.17382904,62052.0,62042.0,0.51305086]
[1727795534662,0.1564578,62052.0,62048.0,0.161164]
[1727795534890,0.01737438,62051.0,62050.0,0.1]
[1727795535128,0.02414806,62070.0,62054.0,0.1]
[1727795535378,0.18442083,62069.0,62057.0,0.1]
[1727795535602,0.02796303,62068.0,62063.0,0.24166653]
[1727795535829,0.1564578,62067.0,62064.0,0.02416665]
[1727795536040,0.1564578,62067.0,62065.0,0.24166653]
[1727795536041,0.02796303,62066.0,62065.0,0.24166653]
[1727795536263,0.02796303,62066.0,62065.0,0.50278753]
[1727795536551,0.00807603,62082.0,62066.0,0.1]
[1727795536766,0.18417615,62081.0,62066.0,0.1]
[1727795536999,0.18417615,62081.0,62068.0,0.24166653]
[1727795537000,0.03579438,62080.0,62068.0,0.24166653]
[1727795537219,0.18417615,62079.0,62069.0,0.161109]
[1727795537468,0.03574976,62078.0,62070.0,0.161106]
[1727795537718,0.02767373,62077.0,62071.0,0.1]
[1727795537985,0.02767373,62076.0,62075.0,0.161095]
[1727795538201,0.02767373,62076.0,62071.0,0.1]
[1727795538202,0.02767373,62076.0,62073.0,0.51305086]
[1727795538444,0.00807603,62077.0,62076.0,0.1]
[1727795538662,0.02767642,62077.0,62076.0,0.1]
[1727795539340,0.02767642,62077.0,62071.0,0.322207]
[1727795539341,0.04332361,62077.0,62072.0,0.1]
[1727795539566,0.322117,62090.0,62071.0,0.161105]
[1727795539567,0.04332361,62076.0,62071.0,0.161105]
[1727795539828,0.04332361,62076.0,62069.0,0.1]
[1727795539829,0.19978141,62075.0,62069.0,0.1]
[1727795540043,0.19978141,62075.0,62071.0,0.001]
[1727795540044,0.04317361,62074.0,62071.0,0.001]
[1727795540293,0.04317361,62073.0,62072.0,0.261103]
[1727795541443,0.04317361,62073.0,62061.0,0.322261]
[1727795541444,0.19963141,62073.0,62061.0,0.322261]
[1727795541678,0.17210499,62072.0,62067.0,0.1]
[1727795541927,0.009,62077.0,62067.0,0.15027915]
[1727795541928,0.17210499,62071.0,62067.0,0.15027915]
[1727795542167,0.17210499,62071.0,62067.0,0.1]
[1727795542168,0.01564719,62070.0,62067.0,0.1]
[1727795542399,0.322168,62080.0,62066.0,0.24166653]
[1727795542400,0.064532,62097.0,62084.0,0.1]
[1727795542675,0.24166653,62110.0,62098.0,0.32207]
[1727795542676,0.24166653,62101.0,62098.0,0.32207]
[1727795542918,0.0080706,62109.0,62096.0,0.51305086]
[1727795542919,0.0080706,62100.0,62099.0,0.261033]
[1727795543189,0.0080706,62109.0,62103.0,0.1]
[1727795543422,0.000821,62114.0,62103.0,0.1]
[1727795543656,0.1564578,62113.0,62104.0,0.042206]
[1727795543876,0.1564578,62113.0,62098.0,0.24166653]
[1727795544246,0.1564578,62113.0,62105.0,0.24166653]
[1727795544247,0.161007,62109.0,62105.0,0.24166653]
[1727795544403,0.161007,62109.0,62096.0,0.16104]
[1727795544404,0.1564578,62108.0,62098.0,0.001]
[1727795544618,0.00807143,62112.0,62099.0,0.24166653]
[1727795544619,0.16103,62100.0,62099.0,0.24166653]
[1727795544839,0.1564578,62100.0,62099.0,0.24166653]
[1727795545073,0.1564578,62100.0,62090.0,0.40272153]
[1727795545074,0.1564578,62100.0,62090.0,0.24166653]
[1727795545335,0.00807143,62112.0,62084.0,0.001]
[1727795545336,0.161046,62094.0,62084.0,0.001]
[1727795545550,0.161046,62094.0,62090.0,0.24166653]
[1727795545551,0.161055,62091.0,62090.0,0.24166653]
[1727795545780,0.161055,62091.0,62083.0,0.24166653]
[1727795545781,0.1564578,62091.0,62083.0,0.24166653]
[1727795546013,0.161066,62087.0,62083.0,0.24166653]
[1727795546239,0.1564578,62086.0,62083.0,0.24166653]
[1727795546707,0.51505086,62116.0,62083.0,0.24166653]
[1727795546949,0.322763,62123.0,62083.0,0.24166653]
[1727795546950,0.161036,62098.0,62090.0,0.001]
[1727795547156,0.006,62100.0,62090.0,0.001]
[1727795547157,0.1564578,62097.0,62092.0,0.24166653]
[1727795547405,0.1564578,62097.0,62090.0,0.001]
[1727795547406,0.01732485,62096.0,62090.0,0.001]
[1727795547648,0.17378265,62095.0,62091.0,0.24166653]
[1727795547882,0.01732485,62094.0,62090.0,0.001]
[1727795548128,0.322047,62103.0,62090.0,0.001]
[1727795548129,0.17378265,62093.0,62092.0,0.24166653]
[1727795548390,0.01732485,62093.0,62092.0,0.40271753]
[1727795548608,0.01732485,62093.0,62092.0,0.261051]
[1727795549052,0.17378265,62093.0,62090.0,0.001]
[1727795549337,0.51305086,62108.0,62083.0,0.001]
[1727795549338,0.17378265,62092.0,62083.0,0.001]
[1727795549588,0.51305086,62108.0,62083.0,0.001]
[1727795549589,0.161072,62084.0,62083.0,0.001]
[1727795549816,0.33485465,62084.0,62083.0,0.24166653]
[1727795550033,0.3175298,62084.0,62083.0,0.24166653]
[1727795550278,0.1564578,62084.0,62083.0,0.24166653]
[1727795550557,0.16108,62081.0,62075.0,0.24166653]
[1727795550729,0.20124717,62084.0,62083.0,0.001]
[1727795550944,0.22871841,62084.0,62083.0,0.001]
[1727795551157,0.322155,62082.0,62063.0,0.161126]
[1727795551404,0.161116,62067.0,62056.0,0.161144]
[1727795551619,0.01717517,62067.0,62055.0,0.56395953]
[1727795551943,0.161106,62071.0,62066.0,0.24166653]
[1727795552142,0.04481261,62070.0,62067.0,0.51305086]
[1727795552345,0.17369342,62069.0,62047.0,0.75471739]
[1727795552572,0.161116,62067.0,62056.0,0.161143]
[1727795552797,0.1564578,62066.0,62054.0,0.56396353]
[1727795553022,0.17369342,62066.0,62056.0,0.161143]
[1727795553198,0.17369342,62066.0,62054.0,0.88626053]
[1727795553410,0.19888608,62066.0,62058.0,0.161138]
[1727795553611,0.19888608,62066.0,62054.0,1.07701439]
[1727795553813,0.19888608,62066.0,62062.0,0.161127]
[1727795553814,0.19888941,62066.0,62062.0,0.161127]
[1727795554032,0.19888941,62066.0,62065.0,0.1011427]
[1727795554239,0.17863645,62066.0,62065.0,0.0773]
[1727795554615,0.03764294,62066.0,62065.0,0.0773]
[1727795554852,0.03764308,62066.0,62065.0,0.0773]
[1727795555068,0.02217865,62066.0,62065.0,0.238421]
[1727795555324,0.005,62066.0,62065.0,0.46996154]
[1727795555540,0.005,62066.0,62065.0,0.1773]
[1727795555766,0.01711628,62066.0,62065.0,0.1773]
[1727795555990,0.322098,62093.0,62066.0,0.1]
[1727795556245,0.1564578,62080.0,62066.0,0.1]
[1727795556477,0.322183,62077.0,62068.0,0.1]
[1727795556706,0.000819,62092.0,62068.0,0.1]
[1727795556707,0.000819,62092.0,62080.0,0.1]
[1727795556973,0.01726174,62091.0,62080.0,0.1]
[1727795557194,0.000819,62092.0,62091.0,0.161053]
[1727795557649,0.000819,62092.0,62091.0,0.28073087]
[1727795558613,0.000819,62092.0,62091.0,0.6028974]
[1727795558831,0.000819,62092.0,62091.0,0.7028974]
[1727795559087,0.24166653,62112.0,62096.0,0.51305086]
[1727795559307,0.2669059,62105.0,62102.0,0.161023]
[1727795559626,0.02523937,62105.0,62104.0,0.67407086]
[1727795559870,0.02523937,62105.0,62104.0,0.77407086]
[1727795561032,0.02923937,62105.0,62104.0,0.77407086]
[1727795561721,0.189186,62113.0,62112.0,0.260999]
[1727795561948,0.189186,62113.0,62112.0,0.83235006]
[1727795562409,0.189186,62113.0,62112.0,0.90915006]
[1727795563538,0.189186,62113.0,62112.0,0.91015006]
[1727795563769,0.189186,62113.0,62112.0,0.91115006]
[1727795564212,0.189186,62113.0,62112.0,0.91015006]
[1727795565157,0.189186,62113.0,62112.0,0.90915006]
[1727795565425,0.189186,62113.0,62112.0,0.0768]
[1727795565652,0.189186,62113.0,62104.0,0.161019]
[1727795565653,0.2782438,62113.0,62104.0,0.161019]
[1727795565885,0.2782438,62113.0,62102.0,0.24166653]
[1727795565886,0.322005,62111.0,62102.0,0.24166653]
[1727795566120,0.1564578,62112.0,62096.0,0.40761612]
[1727795566121,0.1564578,62110.0,62096.0,0.00563712]
[1727795566353,0.161022,62103.0,62102.0,0.24166653]
[1727795566579,0.1564578,62103.0,62102.0,0.24166653]
[1727795566838,0.01685653,62103.0,62102.0,0.42685818]
[1727795567134,0.122786,62113.0,62105.0,0.322033]
[1727795567135,0.123786,62113.0,62105.0,0.322033]
[1727795567374,0.123786,62113.0,62102.0,0.02416665]
[1727795567375,0.123786,62113.0,62112.0,0.67404986]
[1727795567601,0.122786,62113.0,62105.0,0.51305086]
[1727795567822,0.0167227,62112.0,62111.0,0.261001]
[1727795568073,0.121786,62113.0,62112.0,0.260999]
[1727795569626,0.127605,62113.0,62112.0,0.47223371]
[1727795569874,0.24166653,62141.0,62134.0,0.260942]
[1727795570127,0.24166653,62141.0,62134.0,0.77399286]
[1727795570607,0.24166653,62149.0,62134.0,0.84989286]
[1727795570836,0.24166653,62148.0,62134.0,0.99926095]
[1727795571522,0.24166653,62148.0,62134.0,1.15571875]
[1727795572024,0.02604171,62135.0,62134.0,1.15571875]
[1727795573168,0.000818,62155.0,62139.0,0.260929]
[1727795573389,0.000818,62155.0,62139.0,0.4173868]
[1727795573658,0.000818,62155.0,62139.0,0.57383358]
[1727795573907,0.24166653,62147.0,62139.0,0.260929]
[1727795574162,0.000818,62155.0,62139.0,0.260929]
[1727795574695,0.001821,62140.0,62139.0,0.272929]
[1727795574908,0.000818,62155.0,62143.0,0.260919]
[1727795574909,0.00537828,62144.0,62143.0,0.260919]
[1727795575131,0.00537828,62144.0,62143.0,0.40328529]
[1727795575359,0.00537828,62144.0,62143.0,0.260919]
[1727795576348,0.03059835,62144.0,62143.0,0.260919]
[1727795577074,0.18705615,62144.0,62143.0,0.003]
[1727795577313,0.20355999,62144.0,62143.0,0.003]
[1727795577552,0.17833992,62144.0,62139.0,0.006]
[1727795577797,0.01650384,62143.0,62142.0,0.16092]
[1727795578288,0.00837828,62144.0,62143.0,0.160919]
[1727795578542,0.00537828,62144.0,62143.0,0.33336215]
[1727795578821,0.01437828,62144.0,62143.0,0.33336215]
[1727795579321,0.00537828,62144.0,62143.0,0.260919]
[1727795580935,0.03059763,62144.0,62143.0,0.260919]
[1727795581711,0.03059763,62144.0,62141.0,0.1]
[1727795581937,0.03059763,62144.0,62143.0,0.260919]
[1727795582188,0.03259763,62144.0,62143.0,0.77396986]
[1727795582437,0.03259763,62144.0,62143.0,0.93041664]
[1727795582684,0.03341863,62144.0,62143.0,1.18380444]
[1727795582918,0.000818,62155.0,62143.0,1.18380444]
[1727795582919,0.000818,62155.0,62154.0,0.26089]
[1727795583120,0.000818,62155.0,62154.0,0.3513378]
[1727795584229,0.000818,62155.0,62154.0,0.6047256]
[1727795584483,0.24166653,62170.0,62167.0,0.260857]
[1727795584978,0.00082,62172.0,62167.0,0.260857]
[1727795585224,0.00082,62172.0,62167.0,0.77390786]
[1727795585709,0.00082,62172.0,62167.0,0.260857]
[1727795585927,0.00182,62168.0,62167.0,0.3834625]
[1727795586157,0.00082,62168.0,62167.0,0.3834625]
[1727795586403,0.00082,62172.0,62167.0,0.7382933]
[1727795586632,0.00082,62172.0,62171.0,0.87082686]
[1727795586860,0.00082,62172.0,62171.0,1.02728466]
[1727795587072,0.00082,62172.0,62171.0,1.18373144]
[1727795587310,0.00082,62176.0,62171.0,1.18373144]
[1727795587311,0.00082,62176.0,62172.0,0.357774]
[1727795587546,0.00082,62176.0,62175.0,0.293086]
[1727795587760,0.00082,62176.0,62175.0,0.4172938]
[1727795588951,0.001644,62180.0,62179.0,0.77387686]
[1727795589494,0.001644,62180.0,62179.0,0.90772955]
[1727795589732,0.001644,62180.0,62175.0,0.01]
[1727795589733,0.01824797,62180.0,62175.0,0.01]
[1727795589991,0.001644,62180.0,62175.0,0.01]
[1727795590449,0.001644,62180.0,62175.0,0.25166653]
[1727795590670,0.001644,62180.0,62176.0,0.09211642]
[1727795590932,0.001644,62182.0,62160.0,0.51305086]
[1727795590933,0.321657,62178.0,62160.0,0.51305086]
[1727795591170,0.321657,62178.0,62152.0,0.24166653]
[1727795591171,0.160854,62168.0,62167.0,0.24166653]
[1727795591413,0.17745226,62168.0,62167.0,0.24166653]
[1727795591649,0.01659826,62168.0,62167.0,0.24166653]
[1727795591903,0.04109002,62168.0,62167.0,0.24166653]
[1727795592146,0.04109002,62168.0,62167.0,0.26583318]
[1727795592384,0.01659826,62168.0,62167.0,0.18502365]
[1727795592622,0.001644,62182.0,62171.0,0.32169]
[1727795592844,0.01666975,62181.0,62177.0,0.321662]
[1727795593081,0.001644,62182.0,62181.0,0.16082]
[1727795593302,0.001644,62182.0,62181.0,0.26082]
[1727795593520,0.001644,62182.0,62181.0,0.1]
[1727795593758,0.001644,62182.0,62181.0,0.26082]
[1727795594011,0.02684866,62182.0,62181.0,0.40270788]
[1727795594481,0.04364569,62182.0,62175.0,0.009]
[1727795594706,0.04364569,62182.0,62179.0,0.1]
[1727795594707,0.01679703,62181.0,62179.0,0.1]
[1727795594926,0.01679703,62181.0,62180.0,0.160823]
[1727795595157,0.01679703,62181.0,62180.0,0.1]
[1727795596074,0.01679703,62181.0,62180.0,0.39454394]
[1727795596320,0.321543,62201.0,62180.0,0.39454394]
[1727795596321,0.005,62204.0,62194.0,0.160787]
[1727795596540,0.24166653,62203.0,62194.0,0.260787]
[1727795597019,0.005,62204.0,62194.0,0.260787]
[1727795597495,0.02630602,62195.0,62194.0,0.260787]
[1727795597733,0.02633887,62195.0,62194.0,0.160787]
[1727795597950,0.05154061,62195.0,62194.0,0.260787]
[1727795598187,0.02684374,62195.0,62194.0,0.1]
[1727795598418,0.160787,62194.0,62186.0,0.160807]
[1727795598677,0.05154016,62195.0,62191.0,0.24166653]
[1727795598678,0.02469642,62193.0,62191.0,0.24166653]
[1727795598938,0.02469642,62194.0,62192.0,0.04024675]
[1727795599175,0.34628142,62192.0,62173.0,0.56334553]
[1727795599501,0.321589,62192.0,62184.0,0.24166653]
[1727795599679,0.1564578,62191.0,62184.0,0.24166653]
[1727795599896,0.1564578,62191.0,62179.0,0.32165]
[1727795599897,0.17262192,62191.0,62180.0,0.40248753]
[1727795600134,0.17262192,62191.0,62183.0,0.160814]
[1727795600357,0.19737,62191.0,62180.0,0.24166653]
[1727795600577,0.19737,62191.0,62174.0,0.58935086]
[1727795600578,0.01616412,62190.0,62181.0,0.24166653]
[1727795600812,0.160805,62187.0,62176.0,0.160832]
[1727795601036,0.17262192,62186.0,62180.0,0.24166653]
[1727795601260,0.01616412,62185.0,62173.0,0.24166653]
[1727795601524,0.01616412,62185.0,62166.0,0.24166653]
[1727795601525,0.17262192,62185.0,62174.0,0.24166653]
[1727795601801,0.0409122,62184.0,62174.0,0.24166653]
[1727795602038,0.160829,62178.0,62174.0,0.24266653]
[1727795602267,0.01648437,62177.0,62176.0,0.160832]
[1727795602523,0.02474808,62177.0,62175.0,0.51305086]
[1727795602774,0.1564578,62183.0,62175.0,0.51305086]
[1727795602775,0.1564578,62183.0,62177.0,0.160831]
[1727795603038,0.160832,62177.0,62173.0,0.001]
[1727795603274,0.160832,62177.0,62163.0,0.83478186]
[1727795603275,0.1564578,62176.0,62174.0,0.001]
[1727795603515,0.02476795,62175.0,62174.0,0.002]
[1727795603749,0.02476795,62175.0,62174.0,0.001]
[1727795604021,0.18560395,62175.0,62174.0,0.001]
[1727795604297,0.34206175,62175.0,62174.0,0.001]
[1727795604789,0.34206175,62175.0,62174.0,0.05584072]
[1727795605039,0.321648,62180.0,62174.0,0.05484072]
[1727795605040,0.160825,62180.0,62174.0,0.05484072]
[1727795605302,0.02521063,62181.0,62177.0,0.001]
[1727795605303,0.1564578,62179.0,62177.0,0.001]
[1727795605745,0.1564578,62179.0,62168.0,0.1]
[1727795605983,0.169836,62175.0,62174.0,0.001]
[1727795606237,0.1654578,62175.0,62174.0,0.00264]
[1727795606465,0.02521063,62181.0,62174.0,0.00164]
[1727795606704,0.1564578,62180.0,62174.0,0.00164]
[1727795606953,0.008,62179.0,62178.0,0.160828]
[1727795607233,0.008,62179.0,62178.0,1.09553486]
[1727795607487,0.008,62179.0,62178.0,1.25199266]
[1727795607747,0.008,62179.0,62178.0,1.09553486]
[1727795608007,0.008,62179.0,62178.0,1.25029556]
[1727795608232,0.007,62180.0,62179.0,0.160826]
[1727795608503,0.007,62180.0,62179.0,0.4172838]
[1727795609436,0.0242654,62180.0,62179.0,0.4172838]
[1727795609676,0.0172654,62180.0,62179.0,0.57373058]
[1727795610135,0.0182654,62180.0,62179.0,0.58273058]
[1727795610885,0.0182654,62180.0,62179.0,0.58873058]
[1727795611159,0.001,62180.0,62179.0,0.83039711]
[1727795611393,0.001,62180.0,62179.0,0.87572274]
[1727795611394,0.01846686,62180.0,62179.0,0.87572274]
[1727795611627,0.00082,62186.0,62185.0,0.29306]
[1727795611854,0.00082,62186.0,62185.0,0.93031866]
[1727795612792,0.001642,62195.0,62194.0,0.77383786]
[1727795613033,0.02899431,62195.0,62194.0,0.93029566]
[1727795613301,0.02899431,62195.0,62194.0,0.77383786]
[1727795613567,0.02899431,62195.0,62194.0,1.07199755]
[1727795613568,0.05419124,62195.0,62194.0,1.07199755]
[1727795613816,0.02683893,62195.0,62194.0,1.07199755]
[1727795614044,0.02683893,62195.0,62194.0,0.77383786]
[1727795614269,0.05394176,62195.0,62185.0,0.012]
[1727795614495,0.05394176,62195.0,62192.0,0.160791]
[1727795614496,0.02683893,62195.0,62192.0,0.160791]
[1727795614751,0.02683893,62195.0,62194.0,0.009]
[1727795615263,0.02683893,62195.0,62194.0,0.169787]
[1727795615524,0.02683893,62195.0,62194.0,0.29439604]
[1727795615755,0.02683893,62195.0,62194.0,0.30239604]
[1727795616028,0.02683893,62195.0,62194.0,0.39439604]
[1727795616513,0.02683893,62195.0,62194.0,0.54385384]
[1727795616760,0.02683893,62195.0,62194.0,1.15498184]
[1727795616982,0.02683893,62195.0,62194.0,0.91281984]
[1727795617216,0.02683893,62195.0,62194.0,0.75434284]
[1727795617459,0.00082,62198.0,62197.0,0.260779]
[1727795617713,0.00082,62198.0,62197.0,1.3782238]
[1727795617940,0.24166653,62213.0,62206.0,0.160756]
[1727795618199,0.24166653,62213.0,62206.0,0.99171856]
[1727795618448,0.24166653,62213.0,62206.0,0.83526076]
[1727795618718,0.24166653,62220.0,62206.0,0.83526076]
[1727795619194,0.24166653,62220.0,62206.0,0.77380686]
[1727795619443,0.56310753,62220.0,62206.0,0.77380686]
[1727795619668,0.02519432,62209.0,62206.0,0.77380686]
[1727795619898,0.161546,62218.0,62206.0,0.77380686]
[1727795619899,0.00082,62218.0,62206.0,0.77380686]
[1727795620862,0.00082,62218.0,62206.0,0.78080686]
[1727795622053,0.161545,62218.0,62206.0,0.77780686]
[1727795622294,0.00082,62218.0,62206.0,0.77780686]
[1727795622769,0.00082,62218.0,62206.0,0.77380686]
[1727795622998,0.00082,62218.0,62206.0,0.260756]
[1727795623227,0.00082,62218.0,62206.0,0.003]
[1727795623228,0.195339,62207.0,62206.0,0.003]
[1727795623725,0.195339,62207.0,62206.0,0.002]
[1727795623967,0.195339,62207.0,62206.0,0.005]
[1727795624216,0.0388812,62207.0,62206.0,0.163756]
[1727795624450,0.0388812,62207.0,62206.0,0.72233516]
[1727795624706,0.0158812,62207.0,62206.0,0.72233516]
[1727795624943,0.00082,62218.0,62217.0,0.160727]
[1727795625206,0.00082,62218.0,62217.0,0.260727]
[1727795625445,0.00082,62218.0,62217.0,0.3510944]
[1727795625695,0.00082,62218.0,62217.0,0.2510944]
[1727795625939,0.02601096,62218.0,62217.0,0.2510944]
[1727795626174,0.02601096,62218.0,62217.0,0.86414526]
[1727795626915,0.02531539,62218.0,62217.0,0.86414526]
[1727795627159,0.02531539,62218.0,62217.0,1.05285306]
[1727795627406,0.02531539,62218.0,62217.0,1.05385306]